bitfinex-derivatives/quotes_BTCF0:USTF0_20250729
["timestamp","ask_amount","ask_price","bid_price","bid_amount"]
[1753785438907,1.13125315,118780.0,118770.0,0.004]
[1753785440915,1.24379635,118780.0,118770.0,0.004]
[1753785441314,0.90656549,118780.0,118770.0,0.004]
[1753785441514,1.24379635,118780.0,118770.0,0.004]
[1753785449419,1.30415218,118780.0,118770.0,0.004]
[1753785451220,0.96692132,118780.0,118770.0,0.004]
[1753785451412,1.30415218,118780.0,118770.0,0.004]
[1753785451617,1.24379635,118780.0,118770.0,0.004]
[1753785453622,1.24397925,118780.0,118770.0,0.004]
[1753785458828,0.90674839,118780.0,118770.0,0.004]
[1753785459028,1.24397925,118780.0,118770.0,0.004]
[1753785460323,0.89821993,118780.0,118770.0,0.34101653]
[1753785460628,0.91821993,118780.0,118770.0,0.34101653]
[1753785461029,0.58683536,118780.0,118770.0,0.34101653]
[1753785461432,0.41821993,118780.0,118770.0,0.34101653]
[1753785462630,0.41821993,118780.0,118770.0,0.1724011]
[1753785462832,0.41821993,118780.0,118770.0,0.34101653]
[1753785463332,0.41821993,118780.0,118770.0,0.34947642]
[1753785463629,0.40821993,118780.0,118770.0,0.34947642]
[1753785466631,0.30821993,118780.0,118770.0,0.34947642]
[1753785469532,0.42821993,118780.0,118770.0,0.34947642]
[1753785472334,0.42821993,118780.0,118770.0,0.34101653]
[1753785473730,0.42821993,118780.0,118770.0,0.004]
[1753785473731,0.59683536,118780.0,118770.0,0.004]
[1753785473929,0.76545079,118780.0,118770.0,0.6802]
[1753785474127,0.82580662,118780.0,118770.0,0.6802]
[1753785474332,0.82580662,118780.0,118770.0,0.004]
[1753785474525,0.289241,118770.0,118760.0,1.1075151]
[1753785474737,0.59750956,118770.0,118760.0,0.8446151]
[1753785475837,0.59750956,118770.0,118760.0,1.01323053]
[1753785476138,0.59750956,118770.0,118760.0,1.01623053]
[1753785476338,0.59750956,118770.0,118760.0,1.01923053]
[1753785477428,0.42889413,118770.0,118760.0,1.01923053]
[1753785477632,0.59750956,118770.0,118760.0,1.01923053]
[1753785478327,0.42889413,118770.0,118760.0,1.01923053]
[1753785478529,0.59750956,118770.0,118760.0,1.18784596]
[1753785478839,0.42889413,118770.0,118760.0,1.081786]
[1753785480744,0.42889413,118770.0,118760.0,0.8570151]
[1753785480942,0.42889413,118770.0,118760.0,1.081786]
[1753785482439,0.42889413,118770.0,118760.0,0.6886]
[1753785482641,0.65366503,118770.0,118760.0,0.6822]
[1753785485447,0.65366503,118770.0,118760.0,0.006]
[1753785485652,0.65366503,118770.0,118760.0,0.68212]
[1753785490051,0.1684293,118750.0,118740.0,0.31167836]
[1753785490256,0.42892243,118750.0,118740.0,0.99415836]
[1753785490556,0.42892243,118750.0,118740.0,0.99815836]
[1753785492253,0.1844634,118740.0,118730.0,1.3754641]
[1753785492450,0.41893653,118740.0,118730.0,2.1357714]
[1753785492652,0.41893653,118740.0,118730.0,2.1397714]
[1753785493660,0.41893653,118740.0,118730.0,2.3645423]
[1753785493860,0.41893653,118740.0,118730.0,2.3665423]
[1753785494046,0.41893653,118740.0,118730.0,0.5320623]
[1753785494253,0.41893653,118740.0,118730.0,1.2081423]
[1753785495355,0.41893653,118740.0,118730.0,1.2101423]
[1753785496855,0.41893653,118740.0,118730.0,0.9853714]
[1753785497065,0.41893653,118740.0,118730.0,1.2101423]
[1753785499064,0.41893653,118740.0,118730.0,0.9853714]
[1753785499261,0.41893653,118740.0,118730.0,1.2101423]
[1753785506566,0.41893653,118740.0,118730.0,0.9853714]
[1753785507162,0.41893653,118740.0,118730.0,1.2101423]
[1753785508766,0.58760131,118740.0,118730.0,1.15403618]
[1753785509363,0.41893653,118740.0,118730.0,1.15403618]
[1753785510666,0.41893653,118740.0,118730.0,0.47795618]
[1753785510965,0.41893653,118740.0,118730.0,1.15387618]
[1753785517771,0.41893653,118740.0,118730.0,0.9852114]
[1753785517972,0.41893653,118740.0,118730.0,1.15387618]
[1753785518174,0.41893653,118740.0,118730.0,1.14987618]
[1753785518569,0.75626609,118740.0,118730.0,0.1789578]
[1753785518769,0.58760131,118740.0,118730.0,0.8548378]
[1753785519873,0.58760131,118740.0,118730.0,1.02350258]
[1753785520574,0.75626609,118740.0,118730.0,0.68634]
[1753785520775,0.75626609,118740.0,118730.0,0.0041]
[1753785521075,0.75626609,118740.0,118730.0,0.67994]
[1753785522476,1.25626609,118740.0,118730.0,0.67994]
[1753785522778,1.14390802,118740.0,118730.0,0.67994]
[1753785523078,1.14390802,118740.0,118730.0,0.67894]
[1753785523282,1.14390802,118740.0,118730.0,0.0031]
[1753785523577,1.14390802,118740.0,118730.0,0.0011]
[1753785526972,1.81974802,118740.0,118730.0,0.0011]
[1753785527170,1.65130462,118740.0,118710.0,0.22778883]
[1753785527371,0.51565349,118720.0,118710.0,0.91002883]
[1753785527579,0.42033513,118720.0,118710.0,0.90217327]
[1753785528583,0.42033513,118720.0,118710.0,0.8928337]
[1753785529382,0.64530662,118720.0,118710.0,0.8884337]
[1753785529784,0.64530662,118720.0,118710.0,0.002]
[1753785530082,0.6539349,118720.0,118710.0,0.002]
[1753785530284,0.6539349,118720.0,118710.0,0.004]
[1753785530483,1.1539349,118720.0,118710.0,0.004]
[1753785531080,0.92896341,118720.0,118710.0,0.004]
[1753785531379,1.1539349,118720.0,118710.0,0.004]
[1753785531981,1.37890639,118720.0,118710.0,0.004]
[1753785532180,1.1539349,118720.0,118710.0,0.004]
[1753785532886,1.37890639,118720.0,118710.0,0.004]
[1753785533088,2.05478639,118720.0,118710.0,0.004]
[1753785533386,0.2907246,118690.0,118680.0,0.73316564]
[1753785533688,0.63569609,118690.0,118680.0,0.8928892]
[1753785534287,0.430597,118690.0,118680.0,0.8928892]
[1753785535189,0.430597,118690.0,118680.0,0.8978892]
[1753785535684,0.430597,118690.0,118680.0,0.8998892]
[1753785536386,0.430597,118690.0,118680.0,0.8958892]
[1753785536596,0.430597,118690.0,118680.0,0.8978892]
[1753785537988,0.308387,118690.0,118680.0,1.12286069]
[1753785538182,0.331797,118690.0,118680.0,1.12686069]
[1753785538680,0.331797,118690.0,118680.0,1.12486069]
[1753785538986,0.346937,118690.0,118680.0,1.12586069]
[1753785539581,0.346937,118690.0,118680.0,1.12486069]
[1753785539987,0.357467,118690.0,118680.0,1.12486069]
[1753785540885,0.380177,118690.0,118680.0,0.8998892]
[1753785541087,0.430597,118690.0,118680.0,0.8958892]
[1753785545290,0.430597,118690.0,118680.0,0.8998892]
[1753785545588,0.396207,118690.0,118680.0,0.8998892]
[1753785545790,0.396207,118690.0,118680.0,1.12486069]
[1753785546092,0.430597,118690.0,118680.0,1.12486069]
[1753785546490,0.396207,118690.0,118680.0,1.12486069]
[1753785546692,0.430597,118690.0,118680.0,1.12486069]
[1753785547892,0.430597,118690.0,118680.0,0.8998892]
[1753785548092,0.430597,118690.0,118680.0,1.12486069]
[1753785549294,0.430597,118690.0,118680.0,0.8998892]
[1753785552592,0.430597,118690.0,118680.0,1.12486069]
[1753785552793,0.430597,118690.0,118680.0,0.8998892]
[1753785553092,0.430597,118690.0,118680.0,1.12486069]
[1753785553293,0.430597,118690.0,118680.0,0.8998892]
[1753785554192,0.430597,118690.0,118680.0,0.8958892]
[1753785554998,0.65556849,118690.0,118680.0,0.8958892]
[1753785555295,0.430597,118690.0,118680.0,0.8958892]
[1753785555798,0.65556849,118690.0,118680.0,0.8958892]
[1753785555997,0.430597,118690.0,118680.0,0.8938892]
[1753785556198,0.430597,118690.0,118680.0,0.8928892]
[1753785556494,0.430597,118690.0,118680.0,0.8978892]
[1753785558993,0.430597,118690.0,118680.0,0.8938892]
[1753785561390,0.65556849,118690.0,118680.0,0.8517687]
[1753785561597,0.65556849,118690.0,118680.0,0.8516887]
[1753785561889,0.430597,118690.0,118680.0,0.68316]
[1753785562096,0.65556849,118690.0,118680.0,0.8516887]
[1753785562592,0.430597,118690.0,118680.0,0.8516887]
[1753785562787,0.65556849,118690.0,118680.0,0.8516887]
[1753785563895,0.71592432,118690.0,118680.0,0.8516887]
[1753785564598,0.71592432,118690.0,118680.0,0.68316]
[1753785564800,0.71592432,118690.0,118680.0,0.8516887]
[1753785565107,0.49095283,118690.0,118680.0,0.8516887]
[1753785565299,0.71592432,118690.0,118680.0,0.8516887]
[1753785566898,0.45656283,118690.0,118680.0,0.8516887]
[1753785567203,0.396197,118690.0,118680.0,1.08066019]
[1753785567595,0.430967,118690.0,118680.0,1.08066019]
[1753785569304,0.430967,118690.0,118680.0,0.8556887]
[1753785569804,0.65593849,118690.0,118680.0,0.8556887]
[1753785570009,0.65593849,118690.0,118680.0,0.8516887]
[1753785570600,0.65593849,118690.0,118680.0,0.1759287]
[1753785570897,0.65593849,118690.0,118680.0,0.8516887]
[1753785573706,0.430967,118690.0,118680.0,0.8516887]
[1753785574204,0.65593849,118690.0,118680.0,0.8516887]
[1753785578207,0.430967,118690.0,118680.0,0.8516887]
[1753785580411,0.65593849,118690.0,118680.0,0.8516887]
[1753785583014,0.430967,118690.0,118680.0,0.8516887]
[1753785583212,0.65593849,118690.0,118680.0,0.8516887]
[1753785588516,0.65593849,118690.0,118680.0,0.8516888]
[1753785591621,0.65593849,118690.0,118680.0,0.68316]
[1753785593221,0.65593849,118690.0,118680.0,0.8516887]
[1753785593821,0.65593849,118690.0,118680.0,0.68316]
[1753785596526,0.430967,118690.0,118680.0,0.68316]
[1753785596728,0.65593849,118690.0,118680.0,0.68316]
[1753785596931,0.59981101,118690.0,118680.0,0.68316]
[1753785597825,0.76865502,118690.0,118680.0,0.0074]
[1753785598023,0.76865502,118690.0,118680.0,0.68304]
[1753785598323,0.59981101,118690.0,118680.0,0.68304]
[1753785599626,0.59981101,118690.0,118680.0,0.001]
[1753785599627,0.76865502,118690.0,118680.0,0.001]
[1753785599821,0.76865502,118690.0,118680.0,0.67664]
[1753785600129,0.76865502,118690.0,118680.0,0.59241849]
[1753785600629,1.26858199,118690.0,118680.0,0.59241849]
[1753785600930,1.26958199,118690.0,118680.0,0.59241849]
[1753785601130,0.2880987,118680.0,118670.0,0.0064]
[1753785601319,0.75558609,118680.0,118670.0,0.68204]
[1753785602026,0.75558609,118680.0,118670.0,0.68010085]
[1753785602828,0.64307789,118680.0,118670.0,0.68010085]
[1753785604035,0.64307789,118680.0,118670.0,0.84864375]
[1753785607335,0.41789807,118680.0,118670.0,0.84864375]
[1753785607733,0.64307789,118680.0,118670.0,0.84864375]
[1753785608136,0.41789807,118680.0,118670.0,0.84864375]
[1753785608337,0.64307789,118680.0,118670.0,0.84864375]
[1753785609536,0.41789807,118680.0,118670.0,0.84864375]
[1753785609736,0.41789807,118680.0,118670.0,0.85070375]
[1753785609938,0.64307789,118680.0,118670.0,0.85070375]
[1753785611438,0.41789807,118680.0,118670.0,0.85070375]
[1753785612934,0.41789807,118680.0,118670.0,0.84864375]
[1753785613641,0.64307789,118680.0,118670.0,0.84864375]
[1753785618945,0.64307789,118680.0,118670.0,0.68010085]
[1753785620847,0.64307789,118680.0,118670.0,0.68006085]
[1753785621247,0.41789807,118680.0,118670.0,0.68006085]
[1753785621437,0.64307789,118680.0,118670.0,0.84860375]
[1753785621748,0.64307789,118680.0,118670.0,0.68006085]
[1753785622247,0.64307789,118680.0,118670.0,0.00446085]
[1753785622547,0.64307789,118680.0,118670.0,0.68006085]
[1753785622848,0.75563935,118680.0,118670.0,0.68006085]
[1753785623243,0.75563935,118680.0,118670.0,0.84860375]
[1753785624349,0.75563935,118680.0,118670.0,1.01747439]
[1753785625249,0.41789807,118680.0,118670.0,1.01747439]
[1753785625450,0.75563935,118680.0,118670.0,1.01747439]
[1753785625843,0.58676871,118680.0,118670.0,1.01747439]
[1753785627245,0.41789807,118680.0,118670.0,0.68006085]
[1753785627451,0.75563935,118680.0,118670.0,0.68006085]
[1753785631950,0.75563935,118680.0,118670.0,0.00446085]
[1753785632158,0.2031471,118660.0,118650.0,0.19076412]
[1753785632454,0.2912213,118650.0,118640.0,0.34275708]
[1753785632654,0.58989131,118650.0,118640.0,1.02191708]
[1753785632854,0.58989131,118650.0,118640.0,0.85304644]
[1753785633055,0.58989131,118650.0,118640.0,1.02191708]
[1753785633256,0.58989131,118650.0,118640.0,1.02187708]
[1753785634357,0.42102067,118650.0,118640.0,0.85300644]
[1753785634564,0.42102067,118650.0,118640.0,1.19280772]
[1753785634857,0.42102067,118650.0,118640.0,1.08128291]
[1753785635068,0.29837067,118650.0,118640.0,1.08128291]
[1753785635251,0.29837067,118650.0,118640.0,0.86455187]
[1753785635448,0.32297067,118650.0,118640.0,1.09000834]
[1753785635653,0.42102067,118650.0,118640.0,1.09000834]
[1753785635853,0.42102067,118650.0,118640.0,1.08152291]
[1753785636062,0.42102067,118650.0,118640.0,0.85630644]
[1753785636256,0.42102067,118650.0,118640.0,0.85658644]
[1753785636559,0.64623714,118650.0,118640.0,0.81234064]
[1753785636760,0.64623714,118650.0,118640.0,0.001]
[1753785637059,0.64623714,118650.0,118640.0,0.002]
[1753785637257,0.64623714,118650.0,118640.0,0.68152]
[1753785637956,0.64623714,118650.0,118640.0,0.002]
[1753785638154,0.64623714,118650.0,118640.0,0.6818]
[1753785638554,0.64623714,118650.0,118640.0,0.6851]
[1753785639261,0.42102067,118650.0,118640.0,0.6851]
[1753785639658,0.64623714,118650.0,118640.0,0.6851]
[1753785640160,0.64623714,118650.0,118640.0,0.8536855]
[1753785640462,0.64623714,118650.0,118640.0,0.6851]
[1753785640658,0.64623714,118650.0,118640.0,0.8536855]
[1753785640963,0.42102067,118650.0,118640.0,0.8536855]
[1753785641464,0.42102067,118650.0,118640.0,0.6851]
[1753785641759,0.42102067,118650.0,118640.0,0.8536855]
[1753785642061,0.42102067,118650.0,118640.0,0.8526855]
[1753785642464,0.42102067,118650.0,118640.0,0.8516855]
[1753785643662,0.64623714,118650.0,118640.0,0.8516855]
[1753785644365,0.64623714,118650.0,118640.0,0.6831]
[1753785644761,0.2177356,118640.0,118630.0,0.2140377]
[1753785644962,0.41894497,118640.0,118630.0,0.8936377]
[1753785646063,0.41894497,118640.0,118630.0,0.8956977]
[1753785646467,0.41894497,118640.0,118630.0,0.8966977]
[1753785646660,0.41894497,118640.0,118630.0,1.12191417]
[1753785647262,0.41894497,118640.0,118630.0,0.8946377]
[1753785647958,0.64416144,118640.0,118630.0,0.8946377]
[1753785648867,0.41894497,118640.0,118630.0,0.8946377]
[1753785649169,0.41894497,118640.0,118630.0,0.8956377]
[1753785649564,0.41894497,118640.0,118630.0,0.8976977]
[1753785650264,0.64416144,118640.0,118630.0,0.8956377]
[1753785651969,0.41894497,118640.0,118630.0,0.8956377]
[1753785652170,0.64416144,118640.0,118630.0,0.8956377]
[1753785654564,0.41894497,118640.0,118630.0,0.8956377]
[1753785654868,0.64416144,118640.0,118630.0,0.8956377]
[1753785655069,0.64416144,118640.0,118630.0,0.2160377]
[1753785655274,0.64416144,118640.0,118630.0,0.8955177]
[1753785655871,0.64416144,118640.0,118630.0,0.8952777]
[1753785656070,0.64416144,118640.0,118630.0,0.8952377]
[1753785656565,0.41894497,118640.0,118630.0,0.8951977]
[1753785656771,0.64416144,118640.0,118630.0,0.8951977]
[1753785658373,0.41894497,118640.0,118630.0,0.8951977]
[1753785661770,0.41894497,118640.0,118630.0,0.8529278]
[1753785662378,0.64416144,118640.0,118630.0,0.1738878]
[1753785662577,0.64416144,118640.0,118630.0,0.8526878]
[1753785662970,0.64416144,118640.0,118630.0,0.1738878]
[1753785663170,0.64416144,118640.0,118630.0,0.8526878]
[1753785663477,0.64416144,118640.0,118630.0,0.1738878]
[1753785663675,0.64416144,118640.0,118630.0,0.8530078]
[1753785665279,0.41894497,118640.0,118630.0,0.8530078]
[1753785667081,0.41894497,118640.0,118630.0,0.1738878]
[1753785667271,0.64416144,118640.0,118630.0,0.68414]
[1753785667472,0.64416144,118640.0,118630.0,0.8527398]
[1753785667676,0.64416144,118640.0,118630.0,0.68414]
[1753785668179,0.64416144,118640.0,118630.0,0.8527398]
[1753785668480,0.64416144,118640.0,118630.0,0.1738998]
[1753785668679,0.64416144,118640.0,118630.0,0.8528198]
[1753785668872,0.41894497,118640.0,118630.0,0.8528198]
[1753785669180,0.64416144,118640.0,118630.0,0.68088]
[1753785669979,0.64416144,118640.0,118630.0,0.8494798]
[1753785670379,0.64416144,118640.0,118630.0,0.8527798]
[1753785671579,0.64416144,118640.0,118630.0,0.1738998]
[1753785671881,0.64416144,118640.0,118630.0,0.8526598]
[1753785673382,0.64416144,118640.0,118630.0,0.1738998]
[1753785673680,0.64416144,118640.0,118630.0,0.8525798]
[1753785675973,0.53416144,118640.0,118630.0,0.8525798]
[1753785676483,0.53416144,118640.0,118630.0,0.8522198]
[1753785677482,0.30894497,118640.0,118630.0,0.8522198]
[1753785677681,0.53416144,118640.0,118630.0,0.8522198]
[1753785678786,0.47791316,118640.0,118630.0,1.02118799]
[1753785679086,0.47791316,118640.0,118630.0,0.8522198]
[1753785679285,0.47791316,118640.0,118630.0,1.02118799]
[1753785679483,0.47791316,118640.0,118630.0,0.8522198]
[1753785679681,0.64688135,118640.0,118630.0,1.02118799]
[1753785681177,0.64688135,118640.0,118630.0,0.68362]
[1753785682586,0.64688135,118640.0,118630.0,0.8522198]
[1753785682786,0.64688135,118640.0,118630.0,1.02118799]
[1753785682989,0.64688135,118640.0,118630.0,0.8522198]
[1753785683981,0.64688135,118640.0,118630.0,0.68298]
[1753785684178,0.2888798,118630.0,118620.0,0.00025616]
[1753785684391,0.64661555,118630.0,118620.0,0.68119616]
[1753785684686,0.47764736,118630.0,118620.0,0.68119616]
[1753785684886,0.97764736,118630.0,118620.0,0.68119616]
[1753785685079,0.97764736,118630.0,118620.0,0.00355616]
[1753785685282,1.14661555,118630.0,118620.0,0.67801616]
[1753785685689,0.97764736,118630.0,118620.0,0.67801616]
[1753785685987,0.97764736,118630.0,118620.0,0.67805616]
[1753785686184,0.97764736,118630.0,118620.0,0.68123616]
[1753785686790,1.03403146,118630.0,118620.0,0.68123616]
[1753785686989,1.03503146,118630.0,118620.0,0.68123616]
[1753785688790,1.03503146,118630.0,118620.0,0.00355616]
[1753785688984,1.03503146,118630.0,118620.0,0.68111616]
[1753785689185,1.03503146,118630.0,118620.0,0.68103616]
[1753785689689,0.80967917,118630.0,118620.0,0.68103616]
[1753785689989,1.03503146,118630.0,118620.0,0.00355616]
[1753785690186,1.03503146,118630.0,118620.0,0.68103616]
[1753785690991,0.2166382,118610.0,118600.0,0.2190978]
[1753785691184,0.53405986,118610.0,118600.0,0.2190978]
[1753785691385,0.30870757,118610.0,118600.0,0.87251131]
[1753785692086,0.30870757,118610.0,118600.0,0.87457131]
[1753785692283,0.30870757,118610.0,118600.0,0.87661131]
[1753785693185,0.30870757,118610.0,118600.0,1.1019636]
[1753785693387,0.30870757,118610.0,118600.0,1.1039636]
[1753785697896,0.30884329,118610.0,118600.0,1.1039636]
[1753785700498,0.30884329,118610.0,118600.0,0.87861131]
[1753785700700,0.30884329,118610.0,118600.0,1.1039636]
[1753785702000,0.30884329,118610.0,118600.0,0.87861131]
[1753785702198,0.30884329,118610.0,118600.0,1.1039636]
[1753785703404,0.30884329,118610.0,118600.0,0.4266436]
[1753785703606,0.30884329,118610.0,118600.0,1.1034036]
[1753785704105,0.18856329,118610.0,118600.0,1.1034036]
[1753785704405,0.21126329,118610.0,118600.0,1.1034036]
[1753785704902,0.23705329,118610.0,118600.0,1.1034036]
[1753785705402,0.27098329,118610.0,118600.0,1.1034036]
[1753785705604,0.22113329,118610.0,118600.0,1.1034036]
[1753785706307,0.23705329,118610.0,118600.0,1.1034036]
[1753785706804,0.23705329,118610.0,118600.0,1.21608255]
[1753785707004,0.27471329,118610.0,118600.0,1.21608255]
[1753785707307,0.30864329,118610.0,118600.0,1.21608255]
[1753785707507,0.42864329,118610.0,118600.0,1.21608255]
[1753785708207,0.59765891,118610.0,118600.0,0.87805131]
[1753785708408,0.59765891,118610.0,118600.0,1.21608255]
[1753785708804,0.42864329,118610.0,118600.0,1.21608255]
[1753785709003,0.59765891,118610.0,118600.0,1.21608255]
[1753785709911,0.42864329,118610.0,118600.0,1.21584255]
[1753785710609,0.59765891,118610.0,118600.0,1.21584255]
[1753785711509,0.59765891,118610.0,118600.0,0.87781131]
[1753785711706,0.59765891,118610.0,118600.0,1.21584255]
[1753785712810,0.42864329,118610.0,118600.0,1.21584255]
[1753785714709,0.42864329,118610.0,118600.0,0.87781131]
[1753785714906,0.42864329,118610.0,118600.0,1.21584255]
[1753785715112,0.01993509,118610.0,118600.0,1.21584255]
[1753785715411,0.39864319,118610.0,118600.0,1.21584255]
[1753785715812,0.40864319,118610.0,118600.0,1.21584255]
[1753785716409,0.33705319,118610.0,118600.0,1.21584255]
[1753785717110,0.23705319,118610.0,118600.0,1.21584255]
[1753785717510,0.32113319,118610.0,118600.0,1.21584255]
[1753785717713,0.21126329,118610.0,118600.0,1.21584255]
[1753785717912,0.04263509,118610.0,118600.0,1.21584255]
[1753785718210,0.01993509,118610.0,118600.0,1.21584255]
[1753785720606,0.14993509,118610.0,118600.0,1.21584255]
[1753785720812,0.04263509,118610.0,118600.0,1.21584255]
[1753785722610,0.04263509,118610.0,118600.0,1.21445276]
[1753785724316,0.32126329,118610.0,118600.0,1.21445276]
[1753785724516,0.21126329,118610.0,118600.0,0.87642152]
[1753785724716,0.23705329,118610.0,118600.0,1.21445276]
[1753785724917,0.33705329,118610.0,118600.0,0.53793276]
[1753785725118,0.37098329,118610.0,118600.0,1.21445276]
[1753785727018,0.37098329,118610.0,118600.0,0.53793276]
[1753785727220,0.37098329,118610.0,118600.0,1.21441276]
[1753785727722,0.38732329,118610.0,118600.0,1.21441276]
[1753785728020,0.38732329,118610.0,118600.0,0.53793276]
[1753785728221,0.39732329,118610.0,118600.0,1.21441276]
[1753785728421,0.39732329,118610.0,118600.0,0.53793276]
[1753785728721,0.41864329,118610.0,118600.0,1.21441276]
[1753785729417,0.3987082,118610.0,118600.0,1.21441276]
[1753785729621,0.41851975,118610.0,118600.0,1.21441276]
[1753785730419,0.41851975,118610.0,118600.0,0.53793276]
[1753785730614,0.41851975,118610.0,118600.0,1.21441276]
[1753785731623,0.41851975,118610.0,118600.0,0.53793276]
[1753785731819,0.41851975,118610.0,118600.0,1.21441276]
[1753785736423,0.41851975,118610.0,118600.0,0.53793276]
[1753785736621,0.41851975,118610.0,118600.0,1.21437276]
[1753785737425,0.30851975,118610.0,118600.0,1.21437276]
[1753785737719,0.25326975,118610.0,118600.0,1.21437276]
[1753785738325,0.28539975,118610.0,118600.0,1.21437276]
[1753785738524,0.41771975,118610.0,118600.0,1.21437276]
[1753785739725,0.30771975,118610.0,118600.0,1.21437276]
[1753785740327,0.41771975,118610.0,118600.0,1.21437276]
[1753785741631,0.41771975,118610.0,118600.0,0.87634152]
[1753785741924,0.41771975,118610.0,118600.0,1.21437276]
[1753785743823,0.41771975,118610.0,118600.0,0.87634152]
[1753785744026,0.41771975,118610.0,118600.0,0.53793276]
[1753785744223,0.41771975,118610.0,118600.0,1.21437276]
[1753785746923,0.30771975,118610.0,118600.0,1.21437276]
[1753785747317,0.13909155,118610.0,118600.0,1.21437276]
[1753785747518,0.30771975,118610.0,118600.0,1.21437276]
[1753785747722,0.27558975,118610.0,118600.0,1.21437276]
[1753785747922,0.22100975,118610.0,118600.0,1.21437276]
[1753785748317,0.34100975,118610.0,118600.0,0.53793276]
[1753785748527,0.34100975,118610.0,118600.0,1.21433276]
[1753785748924,0.35613975,118610.0,118600.0,1.21433276]
[1753785749230,0.23613975,118610.0,118600.0,1.21433276]
[1753785750130,0.25273975,118610.0,118600.0,1.21433276]
[1753785750429,0.28486975,118610.0,118600.0,1.21433276]
[1753785751329,0.39486975,118610.0,118600.0,1.21433276]
[1753785751530,0.30718975,118610.0,118600.0,1.21433276]
[1753785751724,0.30718975,118610.0,118600.0,0.87630152]
[1753785751932,0.39718975,118610.0,118600.0,1.21433276]
[1753785752429,0.39718975,118610.0,118600.0,0.53793276]
[1753785752637,0.39718975,118610.0,118600.0,1.21433276]
[1753785754527,0.39718975,118610.0,118600.0,0.53793276]
[1753785754721,0.39718975,118610.0,118600.0,1.21433276]
[1753785755333,0.39718975,118610.0,118600.0,1.21429276]
[1753785757532,0.39718975,118610.0,118600.0,0.87626152]
[1753785757833,0.39718975,118610.0,118600.0,1.21429276]
[1753785758429,0.39718975,118610.0,118600.0,0.53793276]
[1753785758630,0.39718975,118610.0,118600.0,1.21429276]
[1753785759631,0.30718975,118610.0,118600.0,1.21429276]
[1753785760227,0.39718975,118610.0,118600.0,1.21429276]
[1753785760734,0.39718975,118610.0,118600.0,0.87626152]
[1753785760934,0.39718975,118610.0,118600.0,1.21429276]
[1753785761935,0.39718975,118610.0,118600.0,0.87626152]
[1753785762235,0.39718975,118610.0,118600.0,1.21429276]
[1753785763533,0.30718975,118610.0,118600.0,1.21429276]
[1753785763734,0.30718975,118610.0,118600.0,0.53793276]
[1753785763935,0.30718975,118610.0,118600.0,1.21425276]
[1753785765434,0.10643155,118610.0,118600.0,1.21425276]
[1753785765641,0.10643155,118610.0,118600.0,1.38326838]
[1753785765642,0.05238155,118610.0,118600.0,1.38326838]
[1753785766140,0.22100975,118610.0,118600.0,1.38326838]
[1753785766638,0.22100975,118610.0,118600.0,0.53793276]
[1753785766840,0.23634975,118610.0,118600.0,1.21425276]
[1753785767039,0.06772155,118610.0,118600.0,1.21425276]
[1753785768545,0.18772155,118610.0,118600.0,0.53793276]
[1753785768746,0.06772155,118610.0,118600.0,1.21425276]
[1753785771541,0.18772155,118610.0,118600.0,1.21425276]
[1753785771749,0.06772155,118610.0,118600.0,1.21425276]
[1753785772047,0.17772155,118610.0,118600.0,1.21425276]
[1753785772550,0.21085155,118610.0,118600.0,1.21425276]
[1753785772855,0.22589155,118610.0,118600.0,1.21425276]
[1753785773051,0.11589155,118610.0,118600.0,1.21425276]
[1753785773551,0.11589155,118610.0,118600.0,1.21421276]
[1753785774170,0.08276155,118610.0,118600.0,1.21421276]
[1753785774374,0.20276155,118610.0,118600.0,1.21421276]
[1753785774670,0.08276155,118610.0,118600.0,1.21421276]
[1753785774871,0.25138975,118610.0,118600.0,1.21421276]
[1753785775167,0.19276155,118610.0,118600.0,1.21421276]
[1753785775371,0.19276155,118610.0,118600.0,1.38322838]
[1753785775675,0.08276155,118610.0,118600.0,1.38322838]
[1753785776374,0.25138965,118610.0,118600.0,1.38322838]
[1753785776673,0.25138965,118610.0,118600.0,0.70694838]
[1753785776874,0.25138965,118610.0,118600.0,1.38318838]
[1753785777369,0.28451965,118610.0,118600.0,1.38318838]
[1753785777569,0.11589155,118610.0,118600.0,1.38318838]
[1753785777765,0.41667975,118610.0,118600.0,1.38318838]
[1753785777971,0.43667975,118610.0,118600.0,0.87614152]
[1753785778172,0.30667975,118610.0,118600.0,1.21417276]
[1753785778376,0.40667975,118610.0,118600.0,1.21417276]
[1753785781685,0.40667975,118610.0,118600.0,0.53793276]
[1753785781979,0.40667975,118610.0,118600.0,1.21413276]
[1753785782381,0.40667975,118610.0,118600.0,0.53793276]
[1753785782582,0.57569537,118610.0,118600.0,0.53587276]
[1753785782783,0.57569537,118610.0,118600.0,1.25747276]
[1753785782982,0.57569537,118610.0,118600.0,1.93367276]
[1753785783184,0.40667975,118610.0,118600.0,1.93367276]
[1753785789581,0.40667975,118610.0,118600.0,1.59564152]
[1753785789884,0.40667975,118610.0,118600.0,1.93367276]
[1753785794888,0.40667975,118610.0,118600.0,1.59564152]
[1753785795087,0.40667975,118610.0,118600.0,1.93367276]
[1753785796388,0.40667975,118610.0,118600.0,1.59564152]
[1753785796687,0.40667975,118610.0,118600.0,1.93367276]
[1753785799287,0.40667975,118610.0,118600.0,1.93573276]
[1753785800392,0.57569537,118610.0,118600.0,0.8975377]
[1753785800593,0.57569537,118610.0,118600.0,1.74263332]
[1753785800793,0.40667975,118610.0,118600.0,1.91164894]
[1753785801788,0.40667975,118610.0,118600.0,1.74263332]
[1753785801995,0.40667975,118610.0,118600.0,1.5736177]
[1753785802195,0.40667975,118610.0,118600.0,1.23556894]
[1753785802494,0.40667975,118610.0,118600.0,1.91160894]
[1753785802798,0.40667975,118610.0,118600.0,0.8975377]
[1753785802991,0.40667975,118610.0,118600.0,1.91160894]
[1753785804397,0.40667975,118610.0,118600.0,1.5735777]
[1753785804600,0.40667975,118610.0,118600.0,1.91160894]
[1753785805101,0.40667975,118610.0,118600.0,1.91366894]
[1753785806896,0.32100975,118610.0,118600.0,1.91366894]
[1753785807107,0.34106975,118610.0,118600.0,1.91366894]
[1753785807499,0.35528975,118610.0,118600.0,1.91366894]
[1753785808705,0.42392975,118610.0,118600.0,1.91156894]
[1753785810602,0.42392975,118610.0,118600.0,1.23556894]
[1753785810810,0.42392975,118610.0,118600.0,1.91152894]
[1753785812905,0.42392975,118610.0,118600.0,0.7289]
[1753785813207,0.42392975,118610.0,118600.0,1.74407802]
[1753785813408,0.59294537,118610.0,118600.0,1.74407802]
[1753785814113,0.59294537,118610.0,118600.0,1.74207802]
[1753785814410,0.42392975,118610.0,118600.0,1.91209364]
[1753785814612,0.42392975,118610.0,118600.0,1.91315364]
[1753785814816,0.35528975,118610.0,118600.0,1.91315364]
[1753785815202,0.40263975,118610.0,118600.0,1.91115364]
[1753785815409,0.42492975,118610.0,118600.0,1.91115364]
[1753785815704,0.42492975,118610.0,118600.0,1.5731224]
[1753785815906,0.59394537,118610.0,118600.0,1.5743024]
[1753785816204,0.59394537,118610.0,118600.0,1.74331802]